[Event "Titled Tuesday Blitz March 08 Early 2022"]
[White "Spata, German"]
[Black "Khismatullin, Denis"]
[WhiteFideId "113026"]
[BlackFideId "4142578"]
[WhiteElo "2624"]
[BlackElo "2861"]
[Result "0-1"]
[Round "03"]
[TimeControl "180+1"]
[Date "2022.03.09"]
[WhiteClock "0:00:01"]
[BlackClock "0:00:14"]

1. Nf3 {[%clk 0:03:00]}  Nf6 {[%clk 0:02:53]} 2. d4 {[%clk 0:03:00]}  d6 {[%clk 0:02:53]} 3. e3 {[%clk 0:03:00]}  Nbd7 {[%clk 0:02:54]} 4. c4 {[%clk 0:03:00]}  e5 {[%clk 0:02:54]} 5. Nc3 {[%clk 0:03:00]}  Be7 {[%clk 0:02:55]} 6. Be2 {[%clk 0:03:00]}  O-O {[%clk 0:02:55]} 7. O-O {[%clk 0:02:59]}  c6 {[%clk 0:02:54]} 8. b3 {[%clk 0:02:59]}  e4 {[%clk 0:02:53]} 9. Nd2 {[%clk 0:02:58]}  d5 {[%clk 0:02:54]} 10. a4 {[%clk 0:02:56]}  Re8 {[%clk 0:02:45]} 11. Ba3 {[%clk 0:02:56]}  Bxa3 {[%clk 0:02:45]} 12. Rxa3 {[%clk 0:02:57]}  Qe7 {[%clk 0:02:45]} 13. Ra2 {[%clk 0:02:56]}  Nf8 {[%clk 0:02:46]} 14. a5 {[%clk 0:02:55]}  Be6 {[%clk 0:02:45]} 15. Qc1 {[%clk 0:02:54]}  Bg4 {[%clk 0:02:29]} 16. Bxg4 {[%clk 0:02:51]}  Nxg4 {[%clk 0:02:30]} 17. cxd5 {[%clk 0:02:32]}  Qd6 {[%clk 0:02:29]} 18. g3 {[%clk 0:02:27]}  cxd5 {[%clk 0:02:26]} 19. h3 {[%clk 0:02:17]}  Nxe3 {[%clk 0:02:16]} 20. Ndxe4 {[%clk 0:02:17]}  dxe4 {[%clk 0:02:12]} 21. Qxe3 {[%clk 0:02:16]}  f5 {[%clk 0:02:04]} 22. Rc1 {[%clk 0:02:09]}  Rac8 {[%clk 0:01:43]} 23. Rac2 {[%clk 0:02:08]}  Ne6 {[%clk 0:01:43]} 24. Nxe4 {[%clk 0:02:00]}  Qd7 {[%clk 0:01:28]} 25. Rxc8 {[%clk 0:01:56]}  Rxc8 {[%clk 0:01:29]} 26. Rxc8+ {[%clk 0:01:54]}  Qxc8 {[%clk 0:01:30]} 27. Nc5 {[%clk 0:01:41]}  Nxc5 {[%clk 0:01:25]} 28. dxc5 {[%clk 0:01:41]}  Qd7 {[%clk 0:01:26]} 29. Qe5 {[%clk 0:01:18]}  a6 {[%clk 0:01:07]} 30. b4 {[%clk 0:01:09]}  Kf7 {[%clk 0:01:03]} 31. h4 {[%clk 0:01:07]}  g6 {[%clk 0:00:59]} 32. Qh8 {[%clk 0:01:01]}  Ke6 {[%clk 0:00:54]} 33. Qg8+ {[%clk 0:00:54]}  Ke5 {[%clk 0:00:52]} 34. Qc4 {[%clk 0:00:45]}  Qd1+ {[%clk 0:00:51]} 35. Kh2 {[%clk 0:00:44]}  Qd4 {[%clk 0:00:51]} 36. Qe2+ {[%clk 0:00:18]}  Kd5 {[%clk 0:00:51]} 37. Qf3+ {[%clk 0:00:15]}  Qe4 {[%clk 0:00:47]} 38. Qb3+ {[%clk 0:00:15]}  Kc6 {[%clk 0:00:35]} 39. Qf7 {[%clk 0:00:14]}  Qf3 {[%clk 0:00:24]} 40. Kg1 {[%clk 0:00:11]}  Qd1+ {[%clk 0:00:23]} 41. Kh2 {[%clk 0:00:09]}  Qd7 {[%clk 0:00:23]} 42. Qf6+ {[%clk 0:00:07]}  Kb5 {[%clk 0:00:22]} 43. Qb6+ {[%clk 0:00:07]}  Kc4 {[%clk 0:00:23]} 44. Kg1 {[%clk 0:00:07]}  Qc6 {[%clk 0:00:22]} 45. Qd8 {[%clk 0:00:04]}  Kxb4 {[%clk 0:00:21]} 46. Qd4+ {[%clk 0:00:02]}  Kxa5 {[%clk 0:00:20]} 47. Qc4 {[%clk 0:00:02]}  Qe4 {[%clk 0:00:17]} 48. Qb3 {[%clk 0:00:01]}  Qe1+ {[%clk 0:00:14]} 0-1


[Site "https://www.chess.com"]

[Event "Titled Tuesday Blitz March 08 Early 2022"]
[White "Svane, Frederik"]
[Black "Farahat, Ali"]
[WhiteFideId "12923044"]
[BlackFideId "10600507"]
[WhiteElo "2459"]
[BlackElo "2321"]
[Result "1-0"]
[Round "03"]
[TimeControl "180+1"]
[Date "2022.03.08"]
[WhiteClock "0:00:43"]
[BlackClock "0:00:19"]

1. e4 {[%clk 0:03:00]}  e5 {[%clk 0:02:59]} 2. Nf3 {[%clk 0:03:01]}  Nc6 {[%clk 0:02:59]} 3. Bb5 {[%clk 0:03:02]}  a6 {[%clk 0:02:59]} 4. Ba4 {[%clk 0:03:02]}  Nf6 {[%clk 0:03:00]} 5. Nc3 {[%clk 0:03:03]}  d6 {[%clk 0:02:56]} 6. Bxc6+ {[%clk 0:02:53]}  bxc6 {[%clk 0:02:51]} 7. d4 {[%clk 0:02:54]}  Nd7 {[%clk 0:02:49]} 8. O-O {[%clk 0:02:52]}  Be7 {[%clk 0:02:47]} 9. dxe5 {[%clk 0:02:50]}  Nxe5 {[%clk 0:02:47]} 10. Nxe5 {[%clk 0:02:49]}  dxe5 {[%clk 0:02:48]} 11. Be3 {[%clk 0:02:47]}  Rb8 {[%clk 0:02:44]} 12. b3 {[%clk 0:02:47]}  O-O {[%clk 0:02:42]} 13. Na4 {[%clk 0:02:45]}  Be6 {[%clk 0:02:36]} 14. Qxd8 {[%clk 0:02:35]}  Rfxd8 {[%clk 0:02:35]} 15. Rfd1 {[%clk 0:02:35]}  f6 {[%clk 0:02:30]} 16. Bc5 {[%clk 0:02:35]}  Bd6 {[%clk 0:02:30]} 17. Rd3 {[%clk 0:02:30]}  f5 {[%clk 0:02:25]} 18. f3 {[%clk 0:02:21]}  fxe4 {[%clk 0:02:23]} 19. fxe4 {[%clk 0:02:22]}  Rb5 {[%clk 0:02:14]} 20. Kh1 {[%clk 0:02:00]}  Rd7 {[%clk 0:02:05]} 21. Rad1 {[%clk 0:01:44]}  Bg4 {[%clk 0:01:38]} 22. R1d2 {[%clk 0:01:44]}  Rf7 {[%clk 0:01:24]} 23. Bf2 {[%clk 0:01:23]}  h5 {[%clk 0:01:20]} 24. h3 {[%clk 0:01:23]}  Be6 {[%clk 0:01:19]} 25. Kg1 {[%clk 0:01:19]}  Kh7 {[%clk 0:01:17]} 26. c4 {[%clk 0:01:17]}  Rb8 {[%clk 0:01:14]} 27. Bc5 {[%clk 0:01:17]}  Rbf8 {[%clk 0:00:59]} 28. Bxd6 {[%clk 0:01:17]}  cxd6 {[%clk 0:00:59]} 29. Rxd6 {[%clk 0:01:18]}  Rf1+ {[%clk 0:00:59]} 30. Kh2 {[%clk 0:01:18]}  R8f6 {[%clk 0:00:56]} 31. Rxc6 {[%clk 0:01:14]}  h4 {[%clk 0:00:50]} 32. Nc5 {[%clk 0:01:09]}  Bg8 {[%clk 0:00:22]} 33. Rxf6 {[%clk 0:01:08]}  Rxf6 {[%clk 0:00:23]} 34. Nd3 {[%clk 0:01:04]}  Rd6 {[%clk 0:00:22]} 35. Kg1 {[%clk 0:01:00]}  Rd4 {[%clk 0:00:22]} 36. Kf2 {[%clk 0:01:00]}  Rxe4 {[%clk 0:00:22]} 37. Re2 {[%clk 0:01:01]}  Rd4 {[%clk 0:00:20]} 38. Nxe5 {[%clk 0:01:00]}  a5 {[%clk 0:00:20]} 39. Nf3 {[%clk 0:01:01]}  Rf4 {[%clk 0:00:20]} 40. Re5 {[%clk 0:00:58]}  a4 {[%clk 0:00:19]} 41. Rh5+ {[%clk 0:00:58]}  Kg6 {[%clk 0:00:19]} 42. Rxh4 {[%clk 0:00:59]}  axb3 {[%clk 0:00:19]} 43. axb3 {[%clk 0:00:44]}  Rf8 {[%clk 0:00:18]} 44. Rg4+ {[%clk 0:00:44]}  Kh6 {[%clk 0:00:18]} 45. Rh4+ {[%clk 0:00:42]}  Kg6 {[%clk 0:00:18]} 46. Rg4+ {[%clk 0:00:43]}  Kh6 {[%clk 0:00:18]} 47. Rd4 {[%clk 0:00:44]}  g5 {[%clk 0:00:18]} 48. Rd6+ {[%clk 0:00:43]}  Kh5 {[%clk 0:00:19]} 49. g4# {[%clk 0:00:43]} 1-0


[Site "https://www.chess.com"]

[Event "Titled Tuesday Blitz March 08 Early 2022"]
[White "Taboas Rodriguez, Daniel"]
[Black "Durarbayli, Vasif"]
[WhiteFideId "2208466"]
[BlackFideId "13402935"]
[WhiteElo "2429"]
[BlackElo "2528"]
[Result "0-1"]
[Round "03"]
[TimeControl "180+1"]
[Date "2022.03.08"]
[WhiteClock "0:00:05"]
[BlackClock "0:00:14"]

1. d4 {[%clk 0:02:59]}  d5 {[%clk 0:02:54]} 2. Nf3 {[%clk 0:03:00]}  c6 {[%clk 0:02:53]} 3. c4 {[%clk 0:03:01]}  Nf6 {[%clk 0:02:52]} 4. cxd5 {[%clk 0:03:00]}  cxd5 {[%clk 0:02:52]} 5. Nc3 {[%clk 0:03:01]}  Nc6 {[%clk 0:02:52]} 6. Bf4 {[%clk 0:03:02]}  Bf5 {[%clk 0:02:45]} 7. e3 {[%clk 0:03:01]}  a6 {[%clk 0:02:40]} 8. Rc1 {[%clk 0:02:57]}  e6 {[%clk 0:02:04]} 9. Qb3 {[%clk 0:02:55]}  Bb4 {[%clk 0:02:05]} 10. Be2 {[%clk 0:02:54]}  O-O {[%clk 0:02:00]} 11. O-O {[%clk 0:02:55]}  Qe7 {[%clk 0:01:56]} 12. Na4 {[%clk 0:02:53]}  Na5 {[%clk 0:01:51]} 13. Qd1 {[%clk 0:02:47]}  Rac8 {[%clk 0:01:49]} 14. Nb6 {[%clk 0:02:41]}  Rc6 {[%clk 0:01:25]} 15. Rxc6 {[%clk 0:02:21]}  Nxc6 {[%clk 0:01:26]} 16. Qb3 {[%clk 0:02:16]}  Ne4 {[%clk 0:01:11]} 17. Rc1 {[%clk 0:02:15]}  Bd6 {[%clk 0:00:59]} 18. Bxd6 {[%clk 0:02:05]}  Qxd6 {[%clk 0:01:00]} 19. a3 {[%clk 0:02:02]}  Bg4 {[%clk 0:00:49]} 20. Na4 {[%clk 0:01:47]}  b5 {[%clk 0:00:49]} 21. Nc5 {[%clk 0:01:46]}  Bxf3 {[%clk 0:00:49]} 22. Bxf3 {[%clk 0:01:44]}  Nd2 {[%clk 0:00:41]} 23. Qd1 {[%clk 0:01:44]}  Nc4 {[%clk 0:00:37]} 24. Qb3 {[%clk 0:01:11]}  Nd2 {[%clk 0:00:29]} 25. Qd1 {[%clk 0:01:10]}  Nc4 {[%clk 0:00:28]} 26. Qb3 {[%clk 0:01:08]}  a5 {[%clk 0:00:24]} 27. Be2 {[%clk 0:01:01]}  Rb8 {[%clk 0:00:22]} 28. Qa2 {[%clk 0:00:56]}  a4 {[%clk 0:00:23]} 29. b3 {[%clk 0:00:49]}  axb3 {[%clk 0:00:23]} 30. Qxb3 {[%clk 0:00:50]}  g6 {[%clk 0:00:23]} 31. h3 {[%clk 0:00:37]}  Kg7 {[%clk 0:00:23]} 32. Qc3 {[%clk 0:00:35]}  Ra8 {[%clk 0:00:21]} 33. Ra1 {[%clk 0:00:34]}  e5 {[%clk 0:00:15]} 34. dxe5 {[%clk 0:00:32]}  Qxc5 {[%clk 0:00:14]} 35. e6+ {[%clk 0:00:32]}  f6 {[%clk 0:00:15]} 36. Bf3 {[%clk 0:00:24]}  b4 {[%clk 0:00:14]} 37. axb4 {[%clk 0:00:23]}  Qxb4 {[%clk 0:00:08]} 38. Qc1 {[%clk 0:00:22]}  Rxa1 {[%clk 0:00:07]} 39. Qxa1 {[%clk 0:00:23]}  Ne7 {[%clk 0:00:08]} 40. Qa7 {[%clk 0:00:21]}  Qd6 {[%clk 0:00:08]} 41. Bxd5 {[%clk 0:00:21]}  Nb6 {[%clk 0:00:05]} 42. e4 {[%clk 0:00:18]}  Qc5 {[%clk 0:00:03]} 43. Qb7 {[%clk 0:00:11]}  g5 {[%clk 0:00:03]} 44. g3 {[%clk 0:00:11]}  h5 {[%clk 0:00:04]} 45. Kg2 {[%clk 0:00:11]}  Nc8 {[%clk 0:00:04]} 46. Qd7 {[%clk 0:00:11]}  Qd6 {[%clk 0:00:02]} 47. Qe8 {[%clk 0:00:11]}  Ng6 {[%clk 0:00:02]} 48. Qf7+ {[%clk 0:00:11]}  Kh6 {[%clk 0:00:02]} 49. Qxf6 {[%clk 0:00:11]}  Ne7 {[%clk 0:00:03]} 50. h4 {[%clk 0:00:10]}  gxh4 {[%clk 0:00:03]} 51. gxh4 {[%clk 0:00:11]}  Nxd5 {[%clk 0:00:04]} 52. Qg5+ {[%clk 0:00:09]}  Kh7 {[%clk 0:00:04]} 53. exd5 {[%clk 0:00:10]}  Qxd5+ {[%clk 0:00:04]} 54. Qxd5 {[%clk 0:00:10]}  Nf4+ {[%clk 0:00:05]} 55. Kf3 {[%clk 0:00:11]}  Nxd5 {[%clk 0:00:06]} 56. Ke4 {[%clk 0:00:11]}  Ne7 {[%clk 0:00:06]} 57. Ke5 {[%clk 0:00:10]}  Kg6 {[%clk 0:00:07]} 58. f4 {[%clk 0:00:11]}  Nf5 {[%clk 0:00:07]} 59. Kd5 {[%clk 0:00:08]}  Kf6 {[%clk 0:00:08]} 60. e7 {[%clk 0:00:05]}  Nxe7+ {[%clk 0:00:08]} 61. Ke4 {[%clk 0:00:05]}  Nf5 {[%clk 0:00:09]} 62. Kf3 {[%clk 0:00:05]}  Nxh4+ {[%clk 0:00:09]} 63. Ke4 {[%clk 0:00:06]}  Nf5 {[%clk 0:00:10]} 64. Kf3 {[%clk 0:00:07]}  Ke6 {[%clk 0:00:11]} 65. Ke4 {[%clk 0:00:07]}  Kf6 {[%clk 0:00:11]} 66. Kf3 {[%clk 0:00:07]}  Kf7 {[%clk 0:00:11]} 67. Ke4 {[%clk 0:00:08]}  Ke6 {[%clk 0:00:12]} 68. Kf3 {[%clk 0:00:08]}  Kd5 {[%clk 0:00:13]} 69. Kg2 {[%clk 0:00:05]}  Ke4 {[%clk 0:00:14]} 0-1


[Site "https://www.chess.com"]

[Event "Titled Tuesday Blitz March 08 Early 2022"]
[White "Talibov, Shiroghlan"]
[Black "Jobava, Baadur"]
[WhiteFideId "13429078"]
[BlackFideId "13601520"]
[WhiteElo "2070"]
[BlackElo "2617"]
[Result "0-1"]
[Round "03"]
[TimeControl "180+1"]
[Date "2022.03.08"]
[WhiteClock "0:00:03"]
[BlackClock "0:01:06"]

1. c4 {[%clk 0:03:00]}  c6 {[%clk 0:02:59]} 2. Nc3 {[%clk 0:03:00]}  d5 {[%clk 0:03:00]} 3. d4 {[%clk 0:03:00]}  Nf6 {[%clk 0:03:00]} 4. Nf3 {[%clk 0:03:00]}  dxc4 {[%clk 0:03:01]} 5. a4 {[%clk 0:03:00]}  Bf5 {[%clk 0:03:00]} 6. e3 {[%clk 0:02:59]}  e6 {[%clk 0:03:00]} 7. Bxc4 {[%clk 0:02:59]}  h6 {[%clk 0:03:00]} 8. Qb3 {[%clk 0:02:59]}  Qb6 {[%clk 0:02:59]} 9. O-O {[%clk 0:02:55]}  Nbd7 {[%clk 0:02:58]} 10. Re1 {[%clk 0:02:53]}  a5 {[%clk 0:02:50]} 11. Qa2 {[%clk 0:02:52]}  Bb4 {[%clk 0:02:50]} 12. Bd2 {[%clk 0:02:52]}  O-O {[%clk 0:02:49]} 13. Rad1 {[%clk 0:02:32]}  Rad8 {[%clk 0:02:49]} 14. h3 {[%clk 0:02:31]}  Rfe8 {[%clk 0:02:47]} 15. Qb3 {[%clk 0:02:05]}  Bg6 {[%clk 0:02:44]} 16. Na2 {[%clk 0:02:00]}  Bxd2 {[%clk 0:02:43]} 17. Nxd2 {[%clk 0:01:59]}  e5 {[%clk 0:02:41]} 18. Nf3 {[%clk 0:01:56]}  Qxb3 {[%clk 0:02:35]} 19. Bxb3 {[%clk 0:01:54]}  exd4 {[%clk 0:02:30]} 20. exd4 {[%clk 0:01:50]}  Be4 {[%clk 0:02:10]} 21. Re3 {[%clk 0:01:40]}  Nd5 {[%clk 0:01:57]} 22. Bxd5 {[%clk 0:01:32]}  Bxd5 {[%clk 0:01:58]} 23. Nc3 {[%clk 0:01:28]}  Bb3 {[%clk 0:01:58]} 24. Rde1 {[%clk 0:01:27]}  Kf8 {[%clk 0:01:47]} 25. Nd2 {[%clk 0:01:00]}  Be6 {[%clk 0:01:47]} 26. Nde4 {[%clk 0:00:57]}  Nb6 {[%clk 0:01:42]} 27. Nc5 {[%clk 0:00:52]}  Rxd4 {[%clk 0:01:39]} 28. Nxb7 {[%clk 0:00:41]}  Nc4 {[%clk 0:01:30]} 29. R3e2 {[%clk 0:00:36]}  Rb8 {[%clk 0:01:30]} 30. Nc5 {[%clk 0:00:33]}  Bf5 {[%clk 0:01:30]} 31. g4 {[%clk 0:00:30]}  Bg6 {[%clk 0:01:27]} 32. Na6 {[%clk 0:00:23]}  Rbd8 {[%clk 0:01:23]} 33. Nc7 {[%clk 0:00:22]}  Kg8 {[%clk 0:01:19]} 34. Na6 {[%clk 0:00:16]}  f5 {[%clk 0:01:13]} 35. f3 {[%clk 0:00:15]}  fxg4 {[%clk 0:01:13]} 36. hxg4 {[%clk 0:00:15]}  h5 {[%clk 0:01:11]} 37. gxh5 {[%clk 0:00:14]}  Bxh5 {[%clk 0:01:12]} 38. Kg2 {[%clk 0:00:12]}  Rf8 {[%clk 0:01:11]} 39. Rf1 {[%clk 0:00:12]}  Nd2 {[%clk 0:01:10]} 40. Ref2 {[%clk 0:00:03]}  Nxf1 {[%clk 0:01:09]} 41. Rxf1 {[%clk 0:00:04]}  Rd2+ {[%clk 0:01:07]} 42. Kg3 {[%clk 0:00:03]}  Rd3 {[%clk 0:01:07]} 43. Kh4 {[%clk 0:00:02]}  Rdxf3 {[%clk 0:01:06]} 44. Nc5 {[%clk 0:00:03]}  Rxf1 {[%clk 0:01:06]} 0-1


[Site "https://www.chess.com"]

[Event "Titled Tuesday Blitz March 08 Early 2022"]
[White "Tarhan, Adar"]
[Black "Leve, Nitai"]
[WhiteFideId "34544712"]
[BlackFideId "2006898"]
[WhiteElo "1802"]
[BlackElo "2144"]
[Result "0-1"]
[Round "03"]
[TimeControl "180+1"]
[Date "2022.03.09"]
[WhiteClock "0:02:03"]
[BlackClock "0:01:46"]

1. e4 {[%clk 0:02:57]}  c6 {[%clk 0:02:55]} 2. d4 {[%clk 0:02:55]}  d5 {[%clk 0:02:54]} 3. Nc3 {[%clk 0:02:56]}  dxe4 {[%clk 0:02:51]} 4. Nxe4 {[%clk 0:02:57]}  Nf6 {[%clk 0:02:52]} 5. Nxf6+ {[%clk 0:02:57]}  gxf6 {[%clk 0:02:53]} 6. c3 {[%clk 0:02:57]}  Rg8 {[%clk 0:02:53]} 7. Nf3 {[%clk 0:02:51]}  Bg4 {[%clk 0:02:52]} 8. Be2 {[%clk 0:02:44]}  Nd7 {[%clk 0:02:48]} 9. Qc2 {[%clk 0:02:43]}  Qc7 {[%clk 0:02:44]} 10. Qxh7 {[%clk 0:02:42]}  Rg7 {[%clk 0:02:34]} 11. Qc2 {[%clk 0:02:35]}  O-O-O {[%clk 0:02:33]} 12. Be3 {[%clk 0:02:34]}  e5 {[%clk 0:02:26]} 13. O-O-O {[%clk 0:02:30]}  Bh5 {[%clk 0:02:18]} 14. Nh4 {[%clk 0:02:25]}  Bxe2 {[%clk 0:02:13]} 15. Qxe2 {[%clk 0:02:25]}  Qa5 {[%clk 0:02:13]} 16. Kb1 {[%clk 0:02:23]}  e4 {[%clk 0:02:05]} 17. g4 {[%clk 0:02:19]}  Bd6 {[%clk 0:02:01]} 18. Nf5 {[%clk 0:02:18]}  Bf8 {[%clk 0:01:59]} 19. Nxg7 {[%clk 0:02:18]}  Bxg7 {[%clk 0:02:00]} 20. h4 {[%clk 0:02:19]}  Nb6 {[%clk 0:02:00]} 21. h5 {[%clk 0:02:18]}  Rd5 {[%clk 0:01:59]} 22. h6 {[%clk 0:02:18]}  Bh8 {[%clk 0:01:59]} 23. h7 {[%clk 0:02:17]}  Rb5 {[%clk 0:01:59]} 24. Rh5 {[%clk 0:02:12]}  Nd5 {[%clk 0:01:54]} 25. Ka1 {[%clk 0:02:07]}  Nxc3 {[%clk 0:01:48]} 26. Rxb5 {[%clk 0:02:03]}  Qxa2# {[%clk 0:01:46]} 0-1


[Site "https://www.chess.com"]

[Event "Titled Tuesday Blitz March 08 Early 2022"]
[White "Tari, Aryan"]
[Black "Demin, Vladimir"]
[WhiteFideId "1510045"]
[BlackFideId "4167457"]
[WhiteElo "2567"]
[BlackElo "2520"]
[Result "1-0"]
[Round "03"]
[TimeControl "180+1"]
[Date "2022.03.09"]
[WhiteClock "0:00:39"]
[BlackClock "0:00:02"]

1. c4 {[%clk 0:02:59]}  Nf6 {[%clk 0:02:59]} 2. g3 {[%clk 0:02:57]}  e6 {[%clk 0:02:59]} 3. Bg2 {[%clk 0:02:58]}  d5 {[%clk 0:02:59]} 4. d4 {[%clk 0:02:53]}  Be7 {[%clk 0:02:57]} 5. Nf3 {[%clk 0:02:49]}  O-O {[%clk 0:02:57]} 6. O-O {[%clk 0:02:49]}  dxc4 {[%clk 0:02:57]} 7. Ne5 {[%clk 0:02:41]}  Nc6 {[%clk 0:02:56]} 8. Nxc6 {[%clk 0:02:41]}  bxc6 {[%clk 0:02:56]} 9. Na3 {[%clk 0:02:38]}  Bxa3 {[%clk 0:02:12]} 10. bxa3 {[%clk 0:02:39]}  Rb8 {[%clk 0:02:12]} 11. Qc2 {[%clk 0:02:20]}  Qxd4 {[%clk 0:02:05]} 12. Be3 {[%clk 0:02:20]}  Qe5 {[%clk 0:01:52]} 13. Qxc4 {[%clk 0:02:20]}  Qa5 {[%clk 0:01:50]} 14. Rfb1 {[%clk 0:02:13]}  Ba6 {[%clk 0:01:47]} 15. Qxc6 {[%clk 0:02:04]}  Bxe2 {[%clk 0:01:35]} 16. Qc5 {[%clk 0:01:58]}  Qa6 {[%clk 0:01:04]} 17. Rxb8 {[%clk 0:01:48]}  Rxb8 {[%clk 0:01:03]} 18. Qxc7 {[%clk 0:01:48]}  Rc8 {[%clk 0:01:00]} 19. Qxa7 {[%clk 0:01:48]}  Qc4 {[%clk 0:00:40]} 20. h3 {[%clk 0:01:42]}  Qd3 {[%clk 0:00:22]} 21. Qb7 {[%clk 0:01:37]}  Rd8 {[%clk 0:00:18]} 22. a4 {[%clk 0:01:35]}  Nd5 {[%clk 0:00:18]} 23. Bb6 {[%clk 0:01:21]}  Nxb6 {[%clk 0:00:17]} 24. Qxb6 {[%clk 0:01:22]}  h5 {[%clk 0:00:16]} 25. h4 {[%clk 0:01:20]}  Rd4 {[%clk 0:00:14]} 26. a5 {[%clk 0:01:16]}  Ra4 {[%clk 0:00:14]} 27. Qb8+ {[%clk 0:01:04]}  Kh7 {[%clk 0:00:14]} 28. Qe5 {[%clk 0:01:05]}  Bf3 {[%clk 0:00:04]} 29. Kh2 {[%clk 0:00:42]}  Bxg2 {[%clk 0:00:04]} 30. Qxh5+ {[%clk 0:00:42]}  Kg8 {[%clk 0:00:04]} 31. Kxg2 {[%clk 0:00:43]}  Qe4+ {[%clk 0:00:04]} 32. Qf3 {[%clk 0:00:43]}  Qc4 {[%clk 0:00:04]} 33. Rd1 {[%clk 0:00:41]}  g6 {[%clk 0:00:03]} 34. Qf6 {[%clk 0:00:39]}  Qe4+ {[%clk 0:00:02]} 35. Kh2 {[%clk 0:00:39]} 1-0


[Site "https://www.chess.com"]

[Event "Titled Tuesday Blitz March 08 Early 2022"]
[White "Tasev, Dejan"]
[Black "Lopez Del Alamo, Antonio"]
[WhiteFideId "936618"]
[BlackFideId "2227339"]
[WhiteElo "2253"]
[BlackElo "2082"]
[Result "0-1"]
[Round "03"]
[TimeControl "180+1"]
[Date "2022.03.09"]
[WhiteClock "0:00:03"]
[BlackClock "0:00:32"]

1. e4 {[%clk 0:02:04]}  c5 {[%clk 0:02:59]} 2. Nf3 {[%clk 0:02:02]}  e6 {[%clk 0:02:54]} 3. Nc3 {[%clk 0:02:03]}  Nc6 {[%clk 0:02:51]} 4. b3 {[%clk 0:01:18]}  d5 {[%clk 0:02:49]} 5. exd5 {[%clk 0:01:18]}  exd5 {[%clk 0:02:50]} 6. Bb2 {[%clk 0:01:18]}  d4 {[%clk 0:02:50]} 7. Ne2 {[%clk 0:01:18]}  Nf6 {[%clk 0:02:47]} 8. d3 {[%clk 0:01:16]}  Bd6 {[%clk 0:02:44]} 9. g3 {[%clk 0:01:16]}  O-O {[%clk 0:02:41]} 10. Bg2 {[%clk 0:01:16]}  Re8 {[%clk 0:02:34]} 11. O-O {[%clk 0:01:15]}  Bg4 {[%clk 0:02:33]} 12. h3 {[%clk 0:01:15]}  Bh5 {[%clk 0:02:33]} 13. Qd2 {[%clk 0:01:10]}  Qd7 {[%clk 0:02:32]} 14. Kh2 {[%clk 0:01:08]}  Re7 {[%clk 0:02:30]} 15. Rae1 {[%clk 0:01:06]}  Rae8 {[%clk 0:02:30]} 16. Neg1 {[%clk 0:00:48]}  h6 {[%clk 0:02:22]} 17. Rxe7 {[%clk 0:00:46]}  Rxe7 {[%clk 0:02:23]} 18. Re1 {[%clk 0:00:44]}  Bg6 {[%clk 0:02:21]} 19. Rxe7 {[%clk 0:00:43]}  Qxe7 {[%clk 0:02:22]} 20. a3 {[%clk 0:00:42]}  b5 {[%clk 0:02:21]} 21. Qe2 {[%clk 0:00:40]}  Qf8 {[%clk 0:02:12]} 22. Nd2 {[%clk 0:00:35]}  Qc8 {[%clk 0:02:04]} 23. Ngf3 {[%clk 0:00:33]}  Ne7 {[%clk 0:01:58]} 24. Kg1 {[%clk 0:00:30]}  Ned5 {[%clk 0:01:57]} 25. Nh4 {[%clk 0:00:27]}  Bh7 {[%clk 0:01:55]} 26. Ne4 {[%clk 0:00:26]}  Bf8 {[%clk 0:01:53]} 27. Nxf6+ {[%clk 0:00:25]}  Nxf6 {[%clk 0:01:54]} 28. Nf3 {[%clk 0:00:24]}  Bf5 {[%clk 0:01:46]} 29. g4 {[%clk 0:00:24]}  Be6 {[%clk 0:01:46]} 30. Bc1 {[%clk 0:00:23]}  Nd5 {[%clk 0:01:39]} 31. Ne5 {[%clk 0:00:22]}  Bd6 {[%clk 0:01:34]} 32. f4 {[%clk 0:00:19]}  f5 {[%clk 0:01:22]} 33. gxf5 {[%clk 0:00:16]}  Nc3 {[%clk 0:01:08]} 34. Qh5 {[%clk 0:00:15]}  Bxf5 {[%clk 0:01:04]} 35. Qf7+ {[%clk 0:00:14]}  Kh7 {[%clk 0:01:02]} 36. Bd2 {[%clk 0:00:15]}  Qe6 {[%clk 0:00:51]} 37. Qxe6 {[%clk 0:00:11]}  Bxe6 {[%clk 0:00:52]} 38. Bxc3 {[%clk 0:00:11]}  dxc3 {[%clk 0:00:52]} 39. Be4+ {[%clk 0:00:11]}  Kg8 {[%clk 0:00:51]} 40. Kg2 {[%clk 0:00:11]}  Bxb3 {[%clk 0:00:38]} 41. Nf3 {[%clk 0:00:05]}  Bxf4 {[%clk 0:00:32]} 42. cxb3 {[%clk 0:00:03]}  c2 {[%clk 0:00:32]} 0-1


[Site "https://www.chess.com"]

[Event "Titled Tuesday Blitz March 08 Early 2022"]
[White "Thomas, Anysia"]
[Black "Derige Kane, Yan"]
[WhiteFideId "670472"]
[BlackFideId "20665431"]
[WhiteElo "2002"]
[BlackElo "2169"]
[Result "0-1"]
[Round "03"]
[TimeControl "180+1"]
[Date "2022.03.09"]
[WhiteClock "0:00:07"]
[BlackClock "0:02:17"]

1. d4 {[%clk 0:02:57]}  c5 {[%clk 0:02:59]} 2. d5 {[%clk 0:02:54]}  Nf6 {[%clk 0:02:59]} 3. Nc3 {[%clk 0:02:54]}  g6 {[%clk 0:02:59]} 4. e4 {[%clk 0:02:52]}  d6 {[%clk 0:02:58]} 5. Bb5+ {[%clk 0:02:51]}  Nbd7 {[%clk 0:02:56]} 6. a4 {[%clk 0:02:52]}  Bg7 {[%clk 0:02:57]} 7. h3 {[%clk 0:02:51]}  O-O {[%clk 0:02:57]} 8. Nf3 {[%clk 0:02:51]}  a6 {[%clk 0:02:57]} 9. Be2 {[%clk 0:02:49]}  Re8 {[%clk 0:02:58]} 10. O-O {[%clk 0:02:49]}  e6 {[%clk 0:02:58]} 11. dxe6 {[%clk 0:02:48]}  Rxe6 {[%clk 0:02:57]} 12. Bc4 {[%clk 0:02:42]}  Re8 {[%clk 0:02:56]} 13. Qxd6 {[%clk 0:02:14]}  Nb6 {[%clk 0:02:56]} 14. Qxd8 {[%clk 0:01:17]}  Rxd8 {[%clk 0:02:57]} 15. Be2 {[%clk 0:01:07]}  Be6 {[%clk 0:02:56]} 16. Bg5 {[%clk 0:01:04]}  h6 {[%clk 0:02:55]} 17. Be3 {[%clk 0:01:03]}  Rac8 {[%clk 0:02:52]} 18. Rfd1 {[%clk 0:00:53]}  Nc4 {[%clk 0:02:52]} 19. Rxd8+ {[%clk 0:00:47]}  Rxd8 {[%clk 0:02:52]} 20. Bxc4 {[%clk 0:00:34]}  Bxc4 {[%clk 0:02:52]} 21. Bxc5 {[%clk 0:00:34]}  Nh5 {[%clk 0:02:51]} 22. Bb4 {[%clk 0:00:23]}  Nf4 {[%clk 0:02:49]} 23. a5 {[%clk 0:00:20]}  Ne2+ {[%clk 0:02:38]} 24. Nxe2 {[%clk 0:00:20]}  Bxe2 {[%clk 0:02:39]} 25. Rb1 {[%clk 0:00:14]}  Bd1 {[%clk 0:02:30]} 26. c3 {[%clk 0:00:13]}  Bc2 {[%clk 0:02:30]} 27. Re1 {[%clk 0:00:13]}  Bd1 {[%clk 0:02:26]} 28. Re3 {[%clk 0:00:11]}  Bb3 {[%clk 0:02:24]} 29. g3 {[%clk 0:00:11]}  Rd1+ {[%clk 0:02:20]} 30. Re1 {[%clk 0:00:11]}  Rd3 {[%clk 0:02:19]} 31. Kg2 {[%clk 0:00:10]}  h5 {[%clk 0:02:17]} 32. Re3 {[%clk 0:00:11]}  Rd1 {[%clk 0:02:17]} 33. e5 {[%clk 0:00:10]}  Bh6 {[%clk 0:02:17]} 34. Re1 {[%clk 0:00:09]}  Rd3 {[%clk 0:02:18]} 35. Nd4 {[%clk 0:00:09]}  Bd5+ {[%clk 0:02:18]} 36. Kh2 {[%clk 0:00:09]}  Rd2 {[%clk 0:02:17]} 37. Re2 {[%clk 0:00:08]}  Rd1 {[%clk 0:02:17]} 38. g4 {[%clk 0:00:07]}  Bf4# {[%clk 0:02:17]} 0-1


[Site "https://www.chess.com"]